[Event "*** Titled Tuesday Blitz"]
[Site "Chess.com"]
[Date "2020.05.05"]
[Round "8"]
[White "Shuvalov"]
[Black "MiroVlasenko"]
[Result "0-1"]
[WhiteElo "2448"]
[BlackElo "2583"]
[TimeControl "180+1"]
[EndTime "11:36:22 PDT"]
[Termination "MiroVlasenko won on time"]

1. Nf3 {[%clk 0:03:00]} 1... f5 {[%clk 0:02:59.7]} 2. d4 {[%clk 0:02:57.3]} 2...
Nf6 {[%clk 0:02:59.3]} 3. g3 {[%clk 0:02:57.2]} 3... g6 {[%clk 0:02:59.8]} 4.
Bg2 {[%clk 0:02:57.6]} 4... Bg7 {[%clk 0:03:00.5]} 5. O-O {[%clk 0:02:57.9]}
5... O-O {[%clk 0:03:00.9]} 6. c3 {[%clk 0:02:58.4]} 6... c6 {[%clk 0:02:53]} 7.
Nbd2 {[%clk 0:02:54.2]} 7... d6 {[%clk 0:02:46.6]} 8. Qb3+ {[%clk 0:02:52.8]}
8... Kh8 {[%clk 0:02:46.4]} 9. Ng5 {[%clk 0:02:52.4]} 9... d5 {[%clk 0:02:46.3]}
10. f3 {[%clk 0:02:49.8]} 10... Qe8 {[%clk 0:02:40.4]} 11. e4 {[%clk 0:02:46.4]}
11... h6 {[%clk 0:02:38.6]} 12. Nh3 {[%clk 0:02:39.9]} 12... g5 {[%clk
0:02:33.6]} 13. e5 {[%clk 0:02:38.3]} 13... Nh7 {[%clk 0:02:33.6]} 14. f4 {[%clk
0:02:37.7]} 14... e6 {[%clk 0:02:29.3]} 15. c4 {[%clk 0:02:32.2]} 15... b6
{[%clk 0:02:22.2]} 16. a4 {[%clk 0:02:26]} 16... Rg8 {[%clk 0:02:08.3]} 17. a5
{[%clk 0:02:21.6]} 17... b5 {[%clk 0:02:08]} 18. cxb5 {[%clk 0:02:15.6]} 18...
cxb5 {[%clk 0:02:08]} 19. Qe3 {[%clk 0:01:54.5]} 19... Bf8 {[%clk 0:01:53.5]}
20. Nb3 {[%clk 0:01:50.8]} 20... Nc6 {[%clk 0:01:49.6]} 21. Bd2 {[%clk
0:01:48.3]} 21... Ne7 {[%clk 0:01:29.6]} 22. Nc5 {[%clk 0:01:31.3]} 22... Qh5
{[%clk 0:01:24.7]} 23. Rac1 {[%clk 0:01:20.5]} 23... Ng6 {[%clk 0:01:22.8]} 24.
Nd3 {[%clk 0:01:12.3]} 24... b4 {[%clk 0:01:15]} 25. Bxb4 {[%clk 0:00:59.5]}
25... Ba6 {[%clk 0:01:13.2]} 26. Bxf8 {[%clk 0:00:44.3]} 26... Ngxf8 {[%clk
0:01:12.6]} 27. Rfd1 {[%clk 0:00:23.9]} 27... Rb8 {[%clk 0:01:06.9]} 28. Nhf2
{[%clk 0:00:20.6]} 28... Bc4 {[%clk 0:00:54.7]} 29. Rd2 {[%clk 0:00:17.7]} 29...
Qe8 {[%clk 0:00:50.5]} 30. Nc5 {[%clk 0:00:16.3]} 30... gxf4 {[%clk 0:00:49.5]}
31. Qxf4 {[%clk 0:00:16.5]} 31... Rg5 {[%clk 0:00:48.7]} 32. b3 {[%clk
0:00:14.6]} 32... Bb5 {[%clk 0:00:48.2]} 33. Rdc2 {[%clk 0:00:13.5]} 33... Ng6
{[%clk 0:00:46.7]} 34. Qd2 {[%clk 0:00:12.4]} 34... Qg8 {[%clk 0:00:46.1]} 35.
Nh3 {[%clk 0:00:12.1]} 35... Rg4 {[%clk 0:00:44.3]} 36. Bf3 {[%clk 0:00:12.1]}
36... Nh4 {[%clk 0:00:43.4]} 37. Bxg4 {[%clk 0:00:10.7]} 37... Qxg4 {[%clk
0:00:43]} 38. Qg2 {[%clk 0:00:09]} 38... Nxg2 {[%clk 0:00:42.3]} 39. Kxg2 {[%clk
0:00:09.9]} 39... Be2 {[%clk 0:00:38.8]} 40. Nf4 {[%clk 0:00:09.5]} 40... Bf3+
{[%clk 0:00:37.1]} 41. Kf2 {[%clk 0:00:09.1]} 41... Ng5 {[%clk 0:00:35.7]} 42.
h4 {[%clk 0:00:07.6]} 42... Ne4+ {[%clk 0:00:35]} 43. Nxe4 {[%clk 0:00:07.6]}
43... Bxe4 {[%clk 0:00:34.8]} 44. Rc8+ {[%clk 0:00:07.8]} 44... Rxc8 {[%clk
0:00:34.9]} 45. Rxc8+ {[%clk 0:00:08.7]} 45... Kh7 {[%clk 0:00:35.2]} 46. Rc7+
{[%clk 0:00:09.6]} 46... Kg8 {[%clk 0:00:35.5]} 47. Rc8+ {[%clk 0:00:09.4]}
47... Kf7 {[%clk 0:00:35.6]} 48. Rc7+ {[%clk 0:00:09.3]} 48... Ke8 {[%clk
0:00:35.7]} 49. Nxe6 {[%clk 0:00:07.9]} 49... Qf3+ {[%clk 0:00:35.2]} 50. Ke1
{[%clk 0:00:07.6]} 50... Qxg3+ {[%clk 0:00:35.1]} 51. Kd2 {[%clk 0:00:07.5]}
51... Qd3+ {[%clk 0:00:35]} 52. Kc1 {[%clk 0:00:07.3]} 52... Qb1+ {[%clk
0:00:35]} 53. Kd2 {[%clk 0:00:07.5]} 53... Qb2+ {[%clk 0:00:35.3]} 54. Ke1
{[%clk 0:00:06.7]} 54... Qb1+ {[%clk 0:00:33.5]} 55. Kd2 {[%clk 0:00:06.6]}
55... Qd3+ {[%clk 0:00:28.9]} 56. Ke1 {[%clk 0:00:06.8]} 56... Qg3+ {[%clk
0:00:28]} 57. Kd2 {[%clk 0:00:06.8]} 57... Qg6 {[%clk 0:00:26.4]} 58. Nf4 {[%clk
0:00:01.4]} 58... Qa6 {[%clk 0:00:22.6]} 0-1

[Event "*** Titled Tuesday Blitz"]
[Site "Chess.com"]
[Date "2020.05.05"]
[Round "8"]
[White "Poghosyan_Suren"]
[Black "Sven_Tica"]
[Result "1-0"]
[WhiteElo "2494"]
[BlackElo "2686"]
[TimeControl "180+1"]
[EndTime "11:36:23 PDT"]
[Termination "Poghosyan_Suren won by resignation"]

1. e4 {[%clk 0:03:00.9]} 1... c5 {[%clk 0:02:58]} 2. Nf3 {[%clk 0:03:00.5]} 2...
Nf6 {[%clk 0:02:57.3]} 3. Nc3 {[%clk 0:02:56.2]} 3... d5 {[%clk 0:02:54]} 4.
exd5 {[%clk 0:02:55.5]} 4... Nxd5 {[%clk 0:02:53.8]} 5. Bb5+ {[%clk 0:02:54.2]}
5... Bd7 {[%clk 0:02:53.6]} 6. Ne5 {[%clk 0:02:53.4]} 6... Nf6 {[%clk
0:02:53.6]} 7. Nxd7 {[%clk 0:02:52.5]} 7... Nbxd7 {[%clk 0:02:53.4]} 8. O-O
{[%clk 0:02:51.7]} 8... a6 {[%clk 0:02:52.3]} 9. Be2 {[%clk 0:02:50.7]} 9... Ne5
{[%clk 0:02:47.2]} 10. d3 {[%clk 0:02:46.5]} 10... e6 {[%clk 0:02:46.6]} 11. Bf4
{[%clk 0:02:40.5]} 11... Nc6 {[%clk 0:02:46]} 12. Ne4 {[%clk 0:02:30.5]} 12...
Nd5 {[%clk 0:02:37.6]} 13. Bg3 {[%clk 0:02:30.2]} 13... Be7 {[%clk 0:02:36.9]}
14. Qd2 {[%clk 0:02:17.8]} 14... O-O {[%clk 0:02:35.6]} 15. Rad1 {[%clk
0:02:15.3]} 15... f5 {[%clk 0:02:19.3]} 16. Nc3 {[%clk 0:02:13.7]} 16... Nd4
{[%clk 0:02:07.4]} 17. Be5 {[%clk 0:02:05.1]} 17... Bf6 {[%clk 0:02:02.5]} 18.
Bxf6 {[%clk 0:01:59.8]} 18... Qxf6 {[%clk 0:01:57.5]} 19. Nxd5 {[%clk
0:01:50.5]} 19... exd5 {[%clk 0:01:58.4]} 20. c3 {[%clk 0:01:49.2]} 20... Nxe2+
{[%clk 0:01:48]} 21. Qxe2 {[%clk 0:01:48.4]} 21... d4 {[%clk 0:01:48.4]} 22. c4
{[%clk 0:01:45.3]} 22... Rae8 {[%clk 0:01:46.7]} 23. Qf3 {[%clk 0:01:43.7]}
23... Qf7 {[%clk 0:01:42.8]} 24. Rfe1 {[%clk 0:01:42]} 24... h6 {[%clk
0:01:32.9]} 25. h3 {[%clk 0:01:28.9]} 25... b5 {[%clk 0:01:33.2]} 26. b3 {[%clk
0:01:27.5]} 26... Qd7 {[%clk 0:01:28.1]} 27. Kf1 {[%clk 0:01:24]} 27... bxc4
{[%clk 0:01:26]} 28. bxc4 {[%clk 0:01:22.8]} 28... Kh8 {[%clk 0:01:22]} 29. Rxe8
{[%clk 0:01:18.2]} 29... Rxe8 {[%clk 0:01:21.5]} 30. Re1 {[%clk 0:01:17.9]}
30... Rb8 {[%clk 0:01:16.8]} 31. Qd5 {[%clk 0:01:06]} 31... Qxd5 {[%clk
0:00:53.5]} 32. cxd5 {[%clk 0:01:05.5]} 32... f4 {[%clk 0:00:49.8]} 33. Re6
{[%clk 0:00:55.4]} 33... Rd8 {[%clk 0:00:42.9]} 34. Rxa6 {[%clk 0:00:47.1]}
34... Rxd5 {[%clk 0:00:42.9]} 35. Rc6 {[%clk 0:00:44.2]} 35... g5 {[%clk
0:00:38.6]} 36. Ke2 {[%clk 0:00:42]} 36... Kg7 {[%clk 0:00:38.5]} 37. a4 {[%clk
0:00:40.1]} 37... h5 {[%clk 0:00:37.7]} 38. Kf3 {[%clk 0:00:39.2]} 38... Re5
{[%clk 0:00:33.5]} 39. a5 {[%clk 0:00:37.2]} 39... c4 {[%clk 0:00:33.9]} 40.
Rxc4 {[%clk 0:00:33.4]} 40... Rxa5 {[%clk 0:00:33.6]} 41. Rxd4 {[%clk
0:00:33.5]} 41... Kf6 {[%clk 0:00:34.2]} 42. h4 {[%clk 0:00:26.9]} 42... gxh4
{[%clk 0:00:29.6]} 43. Kxf4 {[%clk 0:00:26.8]} 43... Rf5+ {[%clk 0:00:29]} 44.
Ke3 {[%clk 0:00:27.1]} 44... Kg5 {[%clk 0:00:28.7]} 45. Re4 {[%clk 0:00:26.8]}
45... Ra5 {[%clk 0:00:26.2]} 46. Re8 {[%clk 0:00:26.1]} 46... Ra1 {[%clk
0:00:23.9]} 47. Re5+ {[%clk 0:00:25.7]} 47... Kg4 {[%clk 0:00:21.3]} 48. Re4+
{[%clk 0:00:22.9]} 48... Kg5 {[%clk 0:00:20.4]} 49. d4 {[%clk 0:00:19.6]} 49...
Ra3+ {[%clk 0:00:20.1]} 50. Ke2 {[%clk 0:00:19.1]} 50... Ra2+ {[%clk 0:00:20.8]}
51. Kf3 {[%clk 0:00:19.2]} 51... Ra3+ {[%clk 0:00:21.5]} 52. Re3 {[%clk
0:00:19.2]} 52... Ra4 {[%clk 0:00:22.4]} 53. Rd3 {[%clk 0:00:18.6]} 53... Kf5
{[%clk 0:00:21.9]} 54. d5 {[%clk 0:00:18.3]} 54... Ra8 {[%clk 0:00:22]} 55. d6
{[%clk 0:00:17.7]} 55... Rd8 {[%clk 0:00:22.9]} 56. d7 {[%clk 0:00:17.9]} 56...
Ke6 {[%clk 0:00:22.8]} 57. Kf4 {[%clk 0:00:18.8]} 57... Ke7 {[%clk 0:00:23.1]}
58. Kg5 {[%clk 0:00:18.9]} 58... Rg8+ {[%clk 0:00:23.7]} 59. Kxh4 {[%clk
0:00:19.5]} 59... Kd8 {[%clk 0:00:24.3]} 60. g3 {[%clk 0:00:19.7]} 60... Rf8
{[%clk 0:00:24]} 61. f4 {[%clk 0:00:19.1]} 61... Rf5 {[%clk 0:00:24.5]} 62. Re3
{[%clk 0:00:16.9]} 62... Kxd7 {[%clk 0:00:24]} 63. Re5 {[%clk 0:00:17.3]} 63...
Rf7 {[%clk 0:00:21.9]} 64. Kxh5 {[%clk 0:00:17.1]} 64... Rg7 {[%clk 0:00:22.6]}
1-0

[Event "*** Titled Tuesday Blitz"]
[Site "Chess.com"]
[Date "2020.05.05"]
[Round "8"]
[White "chesstrainer2042"]
[Black "Batsai"]
[Result "1-0"]
[WhiteElo "2441"]
[BlackElo "2272"]
[TimeControl "180+1"]
[EndTime "11:36:27 PDT"]
[Termination "chesstrainer2042 won by checkmate"]

1. e4 {[%clk 0:03:00.9]} 1... e6 {[%clk 0:02:56.7]} 2. d4 {[%clk 0:02:59.6]}
2... d5 {[%clk 0:02:55.6]} 3. Nd2 {[%clk 0:03:00.2]} 3... Nf6 {[%clk 0:02:49.8]}
4. e5 {[%clk 0:02:58.9]} 4... Nfd7 {[%clk 0:02:46.8]} 5. c3 {[%clk 0:02:58.6]}
5... c5 {[%clk 0:02:42.8]} 6. Ngf3 {[%clk 0:02:58]} 6... Nc6 {[%clk 0:02:41.8]}
7. Nb3 {[%clk 0:02:58.6]} 7... a5 {[%clk 0:02:00.9]} 8. a4 {[%clk 0:02:57.1]}
8... Be7 {[%clk 0:01:48.1]} 9. Bb5 {[%clk 0:02:56]} 9... cxd4 {[%clk 0:01:44.4]}
10. cxd4 {[%clk 0:02:47.9]} 10... Nb4 {[%clk 0:01:44.4]} 11. O-O {[%clk
0:02:46.1]} 11... O-O {[%clk 0:01:43.9]} 12. Bd2 {[%clk 0:02:42.1]} 12... Nb6
{[%clk 0:01:32.8]} 13. Nc5 {[%clk 0:02:33.9]} 13... Nc4 {[%clk 0:01:19.5]} 14.
Bxb4 {[%clk 0:02:19.4]} 14... axb4 {[%clk 0:01:18.9]} 15. Qb3 {[%clk 0:02:18.4]}
15... b6 {[%clk 0:01:12.3]} 16. Nd3 {[%clk 0:02:16.1]} 16... Na5 {[%clk
0:01:11]} 17. Qd1 {[%clk 0:02:15.8]} 17... Bd7 {[%clk 0:01:08]} 18. Bxd7 {[%clk
0:02:08.6]} 18... Qxd7 {[%clk 0:01:08.9]} 19. b3 {[%clk 0:02:08.9]} 19... Rfc8
{[%clk 0:01:02.8]} 20. Rb1 {[%clk 0:01:55.9]} 20... Rc3 {[%clk 0:01:00]} 21.
Nfe1 {[%clk 0:01:52.2]} 21... b5 {[%clk 0:00:52.8]} 22. axb5 {[%clk 0:01:51.1]}
22... Qxb5 {[%clk 0:00:53.7]} 23. f4 {[%clk 0:01:51.6]} 23... Qb6 {[%clk
0:00:49.8]} 24. Nf3 {[%clk 0:01:50.8]} 24... Nc6 {[%clk 0:00:44.4]} 25. Nf2
{[%clk 0:01:50.2]} 25... Ra3 {[%clk 0:00:42.6]} 26. Kh1 {[%clk 0:01:34.2]} 26...
Na5 {[%clk 0:00:39.1]} 27. Nh3 {[%clk 0:01:10]} 27... h6 {[%clk 0:00:26.1]} 28.
f5 {[%clk 0:01:09.2]} 28... exf5 {[%clk 0:00:25.9]} 29. Nf4 {[%clk 0:01:09.3]}
29... Qc6 {[%clk 0:00:23.3]} 30. e6 {[%clk 0:01:09]} 30... fxe6 {[%clk
0:00:19.6]} 31. Ne5 {[%clk 0:01:09.1]} 31... Qc8 {[%clk 0:00:19.6]} 32. Qh5
{[%clk 0:01:08.1]} 32... Bf6 {[%clk 0:00:02.2]} 33. Qf7+ {[%clk 0:01:05.9]}
33... Kh7 {[%clk 0:00:02.6]} 34. Nxe6 {[%clk 0:01:00.8]} 34... Bxe5 {[%clk
0:00:02.4]} 35. dxe5 {[%clk 0:00:58.2]} 35... Qg8 {[%clk 0:00:03.3]} 36. Qxf5+
{[%clk 0:00:57.5]} 36... Kh8 {[%clk 0:00:04.2]} 37. Qg4 {[%clk 0:00:46]} 37...
Raxb3 {[%clk 0:00:03.7]} 38. Rbd1 {[%clk 0:00:41.8]} 38... Rc4 {[%clk
0:00:03.9]} 39. Qf5 {[%clk 0:00:33.9]} 39... Rc8 {[%clk 0:00:04.1]} 40. Nf4
{[%clk 0:00:33.3]} 40... Rbc3 {[%clk 0:00:03.5]} 41. Ng6+ {[%clk 0:00:32.2]}
41... Kh7 {[%clk 0:00:03.8]} 42. e6 {[%clk 0:00:23.8]} 42... b3 {[%clk
0:00:01.7]} 43. Ne7+ {[%clk 0:00:18.2]} 43... g6 {[%clk 0:00:02.6]} 44. Qe5
{[%clk 0:00:16.3]} 44... Qg7 {[%clk 0:00:03]} 45. Rf7 {[%clk 0:00:15.8]} 45...
Qxf7 {[%clk 0:00:03.8]} 46. exf7 {[%clk 0:00:15.8]} 46... Rc1 {[%clk 0:00:04.7]}
47. Rg1 {[%clk 0:00:13.2]} 47... b2 {[%clk 0:00:05]} 48. Qxb2 {[%clk 0:00:12.1]}
48... Rxg1+ {[%clk 0:00:05.9]} 49. Kxg1 {[%clk 0:00:12.2]} 49... Nc4 {[%clk
0:00:06.8]} 50. Qf6 {[%clk 0:00:11.6]} 50... Rf8 {[%clk 0:00:05.4]} 51. Qxg6+
{[%clk 0:00:11.5]} 51... Kh8 {[%clk 0:00:06]} 52. Qxh6# {[%clk 0:00:11.6]} 1-0

[Event "*** Titled Tuesday Blitz"]
[Site "Chess.com"]
[Date "2020.05.05"]
[Round "8"]
[White "GMartin_Petrov"]
[Black "Kobalia"]
[Result "0-1"]
[WhiteElo "2609"]
[BlackElo "2748"]
[TimeControl "180+1"]
[EndTime "11:36:28 PDT"]
[Termination "Kobalia won by resignation"]

1. e4 {[%clk 0:03:00.9]} 1... c6 {[%clk 0:02:59.1]} 2. d4 {[%clk 0:03:00.1]}
2... d5 {[%clk 0:03:00]} 3. e5 {[%clk 0:03:00.1]} 3... Bf5 {[%clk 0:02:59.4]} 4.
Nf3 {[%clk 0:03:00.1]} 4... e6 {[%clk 0:02:59.2]} 5. Be2 {[%clk 0:02:59.8]} 5...
Ne7 {[%clk 0:02:58.9]} 6. O-O {[%clk 0:02:58.2]} 6... c5 {[%clk 0:02:59]} 7. c4
{[%clk 0:02:52.3]} 7... Nbc6 {[%clk 0:02:53.7]} 8. Nc3 {[%clk 0:02:44.4]} 8...
cxd4 {[%clk 0:02:51.2]} 9. Nb5 {[%clk 0:02:43.6]} 9... Ng6 {[%clk 0:02:50]} 10.
Nfxd4 {[%clk 0:02:35.1]} 10... dxc4 {[%clk 0:02:30.4]} 11. Nxf5 {[%clk
0:02:30.3]} 11... exf5 {[%clk 0:02:29.1]} 12. Bxc4 {[%clk 0:02:23.4]} 12...
Ngxe5 {[%clk 0:02:25.1]} 13. Qe2 {[%clk 0:02:02.8]} 13... Be7 {[%clk 0:02:19.8]}
14. Bf4 {[%clk 0:02:01]} 14... a6 {[%clk 0:01:30.4]} 15. Rad1 {[%clk 0:01:52.3]}
15... Qb8 {[%clk 0:01:30.2]} 16. Bxe5 {[%clk 0:01:16.7]} 16... Nxe5 {[%clk
0:01:24]} 17. Rfe1 {[%clk 0:01:16.6]} 17... O-O {[%clk 0:01:12.1]} 18. Nd4
{[%clk 0:00:52.4]} 18... Bf6 {[%clk 0:01:03.8]} 19. Nxf5 {[%clk 0:00:51.9]}
19... Nxc4 {[%clk 0:00:47]} 20. Qxc4 {[%clk 0:00:52.8]} 20... Re8 {[%clk
0:00:45.6]} 21. h3 {[%clk 0:00:44.6]} 21... b5 {[%clk 0:00:32.6]} 22. Qd5 {[%clk
0:00:32.1]} 22... Qc7 {[%clk 0:00:27.3]} 23. Re3 {[%clk 0:00:23.7]} 23... Red8
{[%clk 0:00:19.1]} 24. Qf3 {[%clk 0:00:20.9]} 24... Rxd1+ {[%clk 0:00:16.6]} 25.
Qxd1 {[%clk 0:00:21.8]} 25... Rd8 {[%clk 0:00:16.3]} 26. Qg4 {[%clk 0:00:17.2]}
26... g6 {[%clk 0:00:15.1]} 27. g3 {[%clk 0:00:14.3]} 27... Qd7 {[%clk
0:00:10.3]} 28. Rf3 {[%clk 0:00:13.4]} 28... h5 {[%clk 0:00:06.6]} 29. Nh6+
{[%clk 0:00:12.4]} 29... Kg7 {[%clk 0:00:06.6]} 30. Qf4 {[%clk 0:00:10.4]} 30...
Qd4 {[%clk 0:00:02.9]} 31. Qc7 {[%clk 0:00:05.1]} 31... Qd1+ {[%clk 0:00:02.4]}
32. Kg2 {[%clk 0:00:04.5]} 32... Qd7 {[%clk 0:00:03]} 33. Qb6 {[%clk 0:00:03.3]}
33... Qd6 {[%clk 0:00:03.1]} 34. Qb7 {[%clk 0:00:01.9]} 34... Kxh6 {[%clk
0:00:02.6]} 35. Qxf7 {[%clk 0:00:01.8]} 35... Rf8 {[%clk 0:00:03.2]} 36. Qb3
{[%clk 0:00:01.3]} 36... Qc6 {[%clk 0:00:03.1]} 37. Qd3 {[%clk 0:00:01.3]} 37...
Bg7 {[%clk 0:00:02.6]} 38. Qe3+ {[%clk 0:00:01.8]} 38... Kh7 {[%clk 0:00:02.3]}
39. h4 {[%clk 0:00:01.1]} 39... Qxf3+ {[%clk 0:00:02.8]} 40. Qxf3 {[%clk
0:00:02]} 40... Rxf3 {[%clk 0:00:03.2]} 41. Kxf3 {[%clk 0:00:02.9]} 41... Bxb2
{[%clk 0:00:03.8]} 42. Ke4 {[%clk 0:00:03.8]} 42... b4 {[%clk 0:00:04.3]} 43.
Kd5 {[%clk 0:00:04.7]} 43... a5 {[%clk 0:00:04.8]} 44. f3 {[%clk 0:00:05.2]}
44... Bc3 {[%clk 0:00:05.2]} 45. Kc4 {[%clk 0:00:05.5]} 45... Kg7 {[%clk
0:00:04.6]} 46. Kb5 {[%clk 0:00:05.3]} 46... Kf6 {[%clk 0:00:04.8]} 47. g4
{[%clk 0:00:05.7]} 47... Kf7 {[%clk 0:00:04.7]} 48. Ka4 {[%clk 0:00:04.6]} 48...
Ke6 {[%clk 0:00:04.3]} 49. Kb5 {[%clk 0:00:04.9]} 49... Ke5 {[%clk 0:00:04.4]}
50. gxh5 {[%clk 0:00:03.6]} 50... gxh5 {[%clk 0:00:03.9]} 51. Kc4 {[%clk
0:00:04.5]} 51... Kf4 {[%clk 0:00:04.1]} 52. a3 {[%clk 0:00:05.1]} 52... Kxf3
{[%clk 0:00:04.2]} 53. a4 {[%clk 0:00:05.1]} 53... Kg4 {[%clk 0:00:04]} 0-1

[Event "*** Titled Tuesday Blitz"]
[Site "Chess.com"]
[Date "2020.05.05"]
[Round "8"]
[White "PavlovDanila"]
[Black "Vesper2018"]
[Result "0-1"]
[WhiteElo "2666"]
[BlackElo "2192"]
[TimeControl "180+1"]
[EndTime "11:36:29 PDT"]
[Termination "Vesper2018 won on time"]

1. e4 {[%clk 0:03:00.9]} 1... c5 {[%clk 0:02:59.7]} 2. Nf3 {[%clk 0:03:00.6]}
2... d6 {[%clk 0:03:00.1]} 3. d4 {[%clk 0:03:00.6]} 3... cxd4 {[%clk 0:03:00.5]}
4. Nxd4 {[%clk 0:03:01.5]} 4... Nf6 {[%clk 0:03:00.8]} 5. Nc3 {[%clk 0:03:01.6]}
5... a6 {[%clk 0:03:01.2]} 6. Be3 {[%clk 0:03:01.7]} 6... e5 {[%clk 0:03:00.8]}
7. Nb3 {[%clk 0:03:02.1]} 7... Be6 {[%clk 0:03:00.5]} 8. Qd2 {[%clk 0:03:02.2]}
8... Nbd7 {[%clk 0:03:00.8]} 9. O-O-O {[%clk 0:03:02.2]} 9... b5 {[%clk
0:03:00]} 10. f4 {[%clk 0:03:02.5]} 10... Rc8 {[%clk 0:02:54.9]} 11. Kb1 {[%clk
0:03:01.3]} 11... Be7 {[%clk 0:02:51.6]} 12. f5 {[%clk 0:03:00.8]} 12... Bc4
{[%clk 0:02:50.2]} 13. g4 {[%clk 0:03:00.1]} 13... h6 {[%clk 0:02:42.4]} 14. Rg1
{[%clk 0:02:49.9]} 14... Nb6 {[%clk 0:02:29]} 15. Qf2 {[%clk 0:02:38]} 15... Na4
{[%clk 0:02:25.1]} 16. Nxa4 {[%clk 0:02:35.9]} 16... bxa4 {[%clk 0:02:24.3]} 17.
Nd2 {[%clk 0:02:34.9]} 17... Bb5 {[%clk 0:02:16.1]} 18. c4 {[%clk 0:02:20]}
18... Bc6 {[%clk 0:02:16]} 19. Bd3 {[%clk 0:02:20]} 19... Rb8 {[%clk 0:02:08.2]}
20. h4 {[%clk 0:02:05.1]} 20... Qa5 {[%clk 0:02:03.4]} 21. Rc1 {[%clk
0:02:00.9]} 21... Qb4 {[%clk 0:01:55.3]} 22. Rc2 {[%clk 0:01:59.8]} 22... Qb7
{[%clk 0:01:55.3]} 23. Qf3 {[%clk 0:01:56.7]} 23... h5 {[%clk 0:01:50.5]} 24. g5
{[%clk 0:01:50.1]} 24... Ng4 {[%clk 0:01:50.4]} 25. a3 {[%clk 0:01:44]} 25...
O-O {[%clk 0:01:42.7]} 26. Ka2 {[%clk 0:01:42.8]} 26... Rfc8 {[%clk 0:01:34.2]}
27. f6 {[%clk 0:01:40.6]} 27... Bf8 {[%clk 0:01:28.7]} 28. fxg7 {[%clk 0:01:36]}
28... Bxg7 {[%clk 0:01:28.3]} 29. Rxg4 {[%clk 0:01:32.8]} 29... hxg4 {[%clk
0:01:27.9]} 30. Qxg4 {[%clk 0:01:33.3]} 30... Bd7 {[%clk 0:01:25.3]} 31. Qf3
{[%clk 0:01:28.3]} 31... Be6 {[%clk 0:01:22.9]} 32. h5 {[%clk 0:01:25]} 32... d5
{[%clk 0:01:17.5]} 33. h6 {[%clk 0:00:36.3]} 33... dxc4 {[%clk 0:01:07.7]} 34.
Bxc4 {[%clk 0:00:35.3]} 34... Bxc4+ {[%clk 0:01:02.3]} 35. Nxc4 {[%clk
0:00:35.3]} 35... Rxc4 {[%clk 0:00:59.8]} 36. Rf2 {[%clk 0:00:33.4]} 36... Rd8
{[%clk 0:00:28.1]} 37. Rf1 {[%clk 0:00:22.3]} 37... Rc2 {[%clk 0:00:25.9]} 38.
Bc1 {[%clk 0:00:20.8]} 38... Qb3+ {[%clk 0:00:21.8]} 39. Qxb3 {[%clk 0:00:20.6]}
39... axb3+ {[%clk 0:00:22.2]} 40. Kxb3 {[%clk 0:00:21]} 40... Rdc8 {[%clk
0:00:22.6]} 41. Be3 {[%clk 0:00:18.9]} 41... Bf8 {[%clk 0:00:22]} 42. h7+ {[%clk
0:00:17.5]} 42... Kxh7 {[%clk 0:00:21]} 43. Rxf7+ {[%clk 0:00:17.9]} 43... Kg8
{[%clk 0:00:21.3]} 44. Rf6 {[%clk 0:00:16.5]} 44... Re2 {[%clk 0:00:20.8]} 45.
Ba7 {[%clk 0:00:09.5]} 45... Bc5 {[%clk 0:00:19.7]} 46. Bxc5 {[%clk 0:00:05.7]}
46... Rxc5 {[%clk 0:00:19]} 47. Rxa6 {[%clk 0:00:06.3]} 47... Rxe4 {[%clk
0:00:18.3]} 48. a4 {[%clk 0:00:06.7]} 48... Re1 {[%clk 0:00:18]} 49. Rb6 {[%clk
0:00:06.8]} 49... e4 {[%clk 0:00:17.3]} 50. Kb4 {[%clk 0:00:07.3]} 50... Rc2
{[%clk 0:00:16.8]} 51. b3 {[%clk 0:00:07.6]} 51... e3 {[%clk 0:00:16.6]} 52. a5
{[%clk 0:00:08.2]} 52... e2 {[%clk 0:00:16.6]} 53. Re6 {[%clk 0:00:08.3]} 53...
Ra1 {[%clk 0:00:16.6]} 54. Kb5 {[%clk 0:00:08.4]} 54... e1=Q {[%clk 0:00:15.7]}
55. Rxe1 {[%clk 0:00:08.8]} 55... Rxe1 {[%clk 0:00:15.7]} 56. b4 {[%clk
0:00:09.7]} 56... Rb2 {[%clk 0:00:15.3]} 57. Kc5 {[%clk 0:00:09.6]} 57... Reb1
{[%clk 0:00:15.4]} 58. a6 {[%clk 0:00:10]} 58... Rxb4 {[%clk 0:00:15.7]} 59. a7
{[%clk 0:00:10.5]} 59... Ra4 {[%clk 0:00:16.2]} 0-1